bitfinex-derivatives/quotes_BTCF0:USTF0_20250426
["timestamp","ask_amount","ask_price","bid_price","bid_amount"]
[1745693876280,0.5155182,94203.0,94202.0,0.6030205]
[1745693878871,0.5155182,94203.0,94202.0,0.2422205]
[1745693879071,0.5155182,94203.0,94202.0,0.6030205]
[1745693879578,0.5155182,94203.0,94202.0,0.3908]
[1745693880079,0.5165182,94203.0,94202.0,0.3908]
[1745693880277,0.5165182,94203.0,94202.0,0.423]
[1745693880473,0.5165182,94203.0,94202.0,0.0622]
[1745693881387,0.5165182,94203.0,94202.0,0.0322]
[1745693881678,0.7765182,94203.0,94202.0,0.0322]
[1745693882070,0.5165182,94203.0,94202.0,0.0322]
[1745693882774,0.2122295,94198.0,94197.0,0.0005]
[1745693882966,0.25,94198.0,94193.0,0.2439403]
[1745693883169,0.2122385,94194.0,94193.0,0.2839403]
[1745693883369,0.2122385,94194.0,94193.0,0.0717]
[1745693883370,0.4622385,94194.0,94193.0,0.0717]
[1745693883780,0.4622385,94194.0,94193.0,0.0317]
[1745693883982,0.5271385,94194.0,94193.0,0.2439408]
[1745693885481,0.5281385,94194.0,94193.0,0.2439408]
[1745693885871,0.5281385,94194.0,94193.0,0.2539408]
[1745693890675,0.2122453,94191.0,94190.0,0.00903688]
[1745693890870,0.4722453,94191.0,94190.0,0.04903688]
[1745693891381,0.8330453,94191.0,94190.0,0.00903688]
[1745693891588,0.8981453,94191.0,94190.0,0.00903688]
[1745693891973,0.8981453,94191.0,94187.0,0.00530856]
[1745693891974,0.212252,94188.0,94187.0,0.00530856]
[1745693892182,0.502252,94188.0,94187.0,0.02530856]
[1745693892384,0.502252,94188.0,94187.0,0.24543974]
[1745693892679,0.502252,94188.0,94187.0,0.03318544]
[1745693892880,0.567352,94188.0,94187.0,0.03318544]
[1745693902689,0.502252,94188.0,94187.0,0.35161174]
[1745693902990,0.2122265,94203.0,94202.0,0.2122205]
[1745693903190,0.5022265,94203.0,94202.0,0.7330205]
[1745693903886,0.5668265,94203.0,94202.0,0.7330205]
[1745693904082,0.5698265,94203.0,94202.0,0.7330205]
[1745693907791,0.5698265,94203.0,94202.0,0.7644205]
[1745693917997,0.3247,94203.0,94202.0,0.7644205]
[1745693919598,0.25000001,94203.0,94202.0,0.9359365]
[1745693924399,0.25000001,94203.0,94202.0,1.2967365]
[1745693928300,0.28140001,94203.0,94202.0,1.2967365]
[1745693929101,0.28140001,94203.0,94202.0,1.1905805]
[1745693940400,0.28140001,94203.0,94202.0,1.1591805]
[1745693945100,0.31470001,94203.0,94202.0,1.1591805]
[1745693949412,0.52691821,94203.0,94202.0,1.1591805]
[1745693950316,0.52691821,94203.0,94202.0,1.0938205]
[1745693962129,0.52691821,94203.0,94202.0,0.7330205]
[1745694000858,0.52691821,94203.0,94202.0,0.16]
[1745694001057,0.2122272,94199.0,94198.0,0.0005]
[1745694001257,0.4522272,94199.0,94198.0,0.0005]
[1745694001454,0.2122363,94195.0,94194.0,0.06696]
[1745694001648,0.4722363,94195.0,94194.0,0.06696]
[1745694002253,0.5360363,94195.0,94194.0,0.07696]
[1745694002750,0.5360363,94195.0,94194.0,0.2891985]
[1745694002954,0.5370363,94195.0,94194.0,0.2891985]
[1745694003554,0.5370363,94195.0,94194.0,0.3195985]
[1745694004456,0.5360363,94195.0,94194.0,0.3195985]
[1745694004656,0.5370363,94195.0,94194.0,0.3195985]
[1745694005254,0.5370363,94195.0,94194.0,0.2526385]
[1745694006160,0.5370363,94195.0,94194.0,0.6134385]
[1745694015961,0.5370363,94195.0,94194.0,0.5830385]
[1745694020569,0.5370363,94195.0,94194.0,0.2222385]
[1745694020771,0.5370363,94195.0,94194.0,0.5830385]
[1745694021069,0.5370363,94195.0,94194.0,0.2222385]
[1745694021273,0.5370363,94195.0,94194.0,0.5830385]
[1745694022967,0.3248,94195.0,94194.0,0.5830385]
[1745694023172,0.2652492,94213.0,94210.0,0.0530502]
[1745694023474,0.5545002,94213.0,94212.0,0.572998]
[1745694023669,0.5545002,94213.0,94212.0,0.722998]
[1745694024777,0.5585002,94213.0,94212.0,0.722998]
[1745694025374,0.5595002,94213.0,94212.0,0.722998]
[1745694025579,0.5595002,94213.0,94212.0,0.73358856]
[1745694060600,0.285,94213.0,94212.0,1.09438856]
[1745694060903,0.0530411,94227.0,94226.0,0.2652003]
[1745694061108,0.5152053,94227.0,94226.0,0.8324403]
[1745694061902,0.5152053,94227.0,94226.0,0.7793997]
[1745694062106,0.5232053,94227.0,94226.0,0.7793997]
[1745694062409,0.5232053,94227.0,94226.0,0.7794064]
[1745694063109,0.5548053,94227.0,94226.0,0.7794064]
[1745694071405,0.5548053,94227.0,94226.0,0.7129664]
[1745694076713,0.5548053,94227.0,94226.0,0.3521664]
[1745694100221,0.5861053,94227.0,94226.0,0.3521664]
[1745694101527,0.5861053,94227.0,94226.0,0.14]
[1745694101722,0.2121687,94225.0,94224.0,0.2780508]
[1745694101919,0.4621687,94225.0,94224.0,0.2880508]
[1745694102829,0.4621687,94225.0,94224.0,0.2221708]
[1745694104327,0.4671687,94225.0,94224.0,0.2221708]
[1745694108833,0.4671687,94225.0,94224.0,0.2539708]
[1745694111437,0.4671687,94225.0,94224.0,0.2845708]
[1745694111637,0.13510094,94234.0,94233.0,0.2121507]
[1745694111839,0.60724934,94234.0,94233.0,0.7129507]
[1745694112535,0.60724934,94234.0,94233.0,0.7764507]
[1745694113343,0.60824934,94234.0,94233.0,0.7764507]
[1745694114734,0.63824934,94234.0,94233.0,0.7764507]
[1745694115438,0.261,94234.0,94233.0,0.7764507]
[1745694115941,0.4731484,94234.0,94233.0,0.7764507]
[1745694116630,0.261,94234.0,94233.0,0.7764507]
[1745694118033,0.4731484,94234.0,94233.0,0.7764507]
[1745694120833,0.5059484,94234.0,94233.0,0.7764507]
[1745694122340,0.5365484,94234.0,94233.0,0.7764507]
[1745694123643,0.5365484,94234.0,94233.0,0.7449507]
[1745694135553,0.5365484,94234.0,94233.0,0.3841507]
[1745694135752,0.5365484,94234.0,94233.0,0.7449507]
[1745694138458,0.5365484,94234.0,94233.0,0.3841507]
[1745694138658,0.5365484,94234.0,94233.0,0.7449507]
[1745694147867,0.0013,94241.0,94240.0,0.2121349]
[1745694148069,0.2613,94241.0,94240.0,0.7779349]
[1745694149376,0.2613,94241.0,94240.0,0.8098349]
[1745694149566,0.2613,94241.0,94240.0,0.81776522]
[1745694149765,0.4734327,94241.0,94240.0,0.81776522]
[1745694151175,0.5051327,94241.0,94240.0,0.81776522]
[1745694153579,0.293,94241.0,94240.0,0.81776522]
[1745694154377,0.3231,94241.0,94240.0,0.81776522]
[1745694155675,0.5352327,94241.0,94240.0,0.81776522]
[1745694158574,0.5352327,94241.0,94240.0,0.50873032]
[1745694158880,0.5352327,94241.0,94240.0,0.57333032]
[1745694159378,0.5352327,94241.0,94240.0,0.78546522]
[1745694178284,0.5352327,94241.0,94240.0,0.42466522]
[1745694178480,0.5352327,94241.0,94240.0,0.78546522]
[1745694178993,0.5352327,94241.0,94240.0,0.42466522]
[1745694179288,0.5352327,94241.0,94240.0,0.78546522]
[1745694179687,0.5352327,94241.0,94240.0,0.50873032]
[1745694179885,0.5352327,94241.0,94240.0,0.14793032]
[1745694181889,0.5352327,94241.0,94240.0,0.00793032]
[1745694182084,0.2121529,94232.0,94231.0,0.2767545]
[1745694182391,0.4721529,94232.0,94231.0,0.4167545]
[1745694182988,0.5368529,94232.0,94231.0,0.4167545]
[1745694183292,0.5368529,94232.0,94231.0,0.2066]
[1745694184884,0.5368529,94232.0,94231.0,0.21444596]
[1745694190296,0.5368529,94232.0,94231.0,0.42660116]
[1745694191091,0.5368529,94232.0,94231.0,0.45780116]
[1745694197400,0.5368529,94232.0,94231.0,0.42660116]
[1745694198202,0.5368529,94232.0,94231.0,0.45950116]
[1745694199601,0.5368529,94232.0,94231.0,0.24734596]
[1745694200905,0.5368529,94232.0,94231.0,0.45950116]
[1745694217520,0.3247,94232.0,94231.0,0.45950116]
[1745694217721,0.26,94232.0,94231.0,0.47530203]
[1745694217919,0.26,94232.0,94231.0,0.50770203]
[1745694218416,0.26,94232.0,94231.0,0.56427659]
[1745694219716,0.26,94232.0,94231.0,0.50807072]
[1745694221020,0.26,94232.0,94231.0,0.49190116]
[1745694223023,0.26,94232.0,94231.0,0.5075754]
[1745694224024,0.26,94232.0,94231.0,1.2291754]
[1745694226126,0.26,94232.0,94231.0,1.21350116]
[1745694226514,0.26,94232.0,94231.0,0.49190116]
[1745694226721,0.26,94232.0,94231.0,1.21350116]
[1745694227919,0.26,94232.0,94231.0,0.49190116]
[1745694228120,0.26,94232.0,94231.0,1.21350116]
[1745694236730,0.26,94232.0,94231.0,0.49190116]
[1745694236935,0.26,94232.0,94231.0,1.21350116]
[1745694237831,0.26,94232.0,94231.0,0.49190116]
[1745694238028,0.26,94232.0,94231.0,1.21350116]
[1745694242133,0.26,94232.0,94231.0,1.22931196]
[1745694242541,0.26,94232.0,94231.0,1.22931366]
[1745694244540,0.26,94232.0,94231.0,1.19691366]
[1745694244737,0.26,94232.0,94231.0,0.47531366]
[1745694245039,0.26,94232.0,94231.0,1.19691366]
[1745694251651,0.26,94232.0,94231.0,1.25307927]
[1745694253250,0.26,94232.0,94231.0,1.23726677]
[1745694256051,0.26,94232.0,94231.0,0.87646677]
[1745694256553,0.26,94232.0,94231.0,0.82030116]
[1745694260356,0.26,94232.0,94231.0,0.83604718]
[1745694262659,0.26,94232.0,94231.0,0.89223447]
[1745694263352,0.26,94232.0,94231.0,0.92373447]
[1745694264559,0.26,94232.0,94231.0,0.89223447]
[1745694265762,0.26,94232.0,94231.0,1.25303447]
[1745694271763,0.26,94232.0,94231.0,1.19684718]
[1745694275567,0.26,94232.0,94231.0,1.25304144]
[1745694276268,0.26,94232.0,94231.0,1.23729542]
[1745694276476,0.26,94232.0,94231.0,1.25340283]
[1745694279280,0.26,94232.0,94231.0,1.25347615]
[1745694279776,0.26,94232.0,94231.0,1.19728189]
[1745694280180,0.2253857,94232.0,94231.0,1.25347982]
[1745694280475,0.4117,94251.0,94250.0,0.2121124]
[1745694280680,0.25,94251.0,94250.0,0.84632123]
[1745694281383,0.25,94251.0,94250.0,0.9025052]
[1745694281680,0.25,94251.0,94250.0,0.90257908]
[1745694283386,0.25,94251.0,94250.0,0.90266071]
[1745694283776,0.25,94251.0,94250.0,0.84650666]
[1745694285383,0.25,94251.0,94250.0,0.90830666]
[1745694286988,0.25,94251.0,94250.0,0.87666717]
[1745694290883,0.25,94251.0,94250.0,0.8762818]
[1745694291991,0.25,94251.0,94250.0,0.8603405]
[1745694292388,0.25,94251.0,94250.0,0.87626002]
[1745694292589,0.25,94251.0,94250.0,0.8603405]
[1745694293494,0.25,94251.0,94250.0,0.87628041]
[1745694293995,0.25,94251.0,94250.0,0.8603405]
[1745694294493,0.25,94251.0,94250.0,0.87627997]
[1745694294694,0.25,94251.0,94250.0,0.8603405]
[1745694295286,0.25,94251.0,94250.0,0.8763238]
[1745694295486,0.25,94251.0,94250.0,0.8603405]
[1745694295895,0.25,94251.0,94250.0,0.87644136]
[1745694296193,0.25,94251.0,94250.0,0.8603405]
[1745694296595,0.25,94251.0,94250.0,0.87644095]
[1745694297097,0.25,94251.0,94250.0,0.8603405]
[1745694297598,0.25,94251.0,94250.0,0.87644099]
[1745694298096,0.25,94251.0,94250.0,0.8603405]
[1745694299098,0.3126,94251.0,94250.0,0.8603405]
[1745694305994,0.3126,94251.0,94250.0,0.87652406]
[1745694306395,0.3126,94251.0,94250.0,0.84632406]
[1745694306596,0.5247102,94251.0,94250.0,0.79329596]
[1745694306797,0.6308102,94251.0,94250.0,0.565]
[1745694307301,0.7988102,94251.0,94250.0,0.565]
[1745694308396,1.0488102,94251.0,94250.0,0.565]
[1745694308693,1.0488102,94251.0,94250.0,0.5008]
[1745694308900,0.7988102,94251.0,94250.0,0.5008]
[1745694311100,0.7988102,94251.0,94250.0,0.7129124]
[1745694312204,0.6308102,94251.0,94250.0,0.7129124]
[1745694312595,0.6308102,94251.0,94250.0,0.5729124]
[1745694313506,0.6308102,94251.0,94250.0,0.3608]
[1745694314204,0.0530347,94239.0,94230.0,0.11533433]
[1745694314407,0.0530347,94239.0,94236.0,0.21472]
[1745694314408,0.2121417,94237.0,94236.0,0.21472]
[1745694314599,0.4821417,94237.0,94236.0,0.21472]
[1745694314912,0.65085771,94237.0,94236.0,0.06472]
[1745694315211,0.65085771,94237.0,94236.0,0.07472]
[1745694315508,0.65085771,94237.0,94236.0,0.07672]
[1745694315893,0.65085771,94237.0,94236.0,0.06672]
[1745694316099,0.81885771,94237.0,94236.0,0.06672]
[1745694317204,0.65085771,94237.0,94236.0,0.06672]
[1745694318501,0.65085771,94237.0,94236.0,0.06572]
[1745694318905,0.65085771,94237.0,94236.0,0.06472]
[1745694319105,0.65085771,94237.0,94236.0,0.06572]
[1745694320607,0.65085771,94237.0,94236.0,0.07572]
[1745694322392,0.65085771,94237.0,94236.0,0.06572]
[1745694327116,0.5447417,94237.0,94236.0,0.06572]
[1745694335216,0.5447417,94237.0,94236.0,0.09682]
[1745694345330,0.5447417,94237.0,94236.0,0.10682]
[1745694346329,0.5447417,94237.0,94236.0,0.09682]
[1745694350027,0.8147417,94237.0,94236.0,0.09682]
[1745694350336,0.5447417,94237.0,94236.0,0.09682]
[1745694350540,0.6447417,94237.0,94236.0,0.09682]
[1745694350735,0.5447417,94237.0,94236.0,0.09682]
[1745694350929,0.8247417,94237.0,94236.0,0.09682]
[1745694351130,0.7847417,94237.0,94236.0,0.09682]
[1745694351325,0.6547417,94237.0,94236.0,0.09682]
[1745694351537,0.6447417,94237.0,94236.0,0.09682]
[1745694351738,0.5447417,94237.0,94236.0,0.09682]
[1745694352430,0.5447417,94237.0,94236.0,0.0321]
[1745694352939,0.65085771,94237.0,94236.0,0.001]
[1745694353529,0.0530369,94235.0,94231.0,0.00784596]
[1745694353730,0.0530369,94235.0,94215.0,0.1620374]
[1745694353731,0.0530427,94224.0,94215.0,0.1620374]
[1745694354027,0.5447136,94224.0,94223.0,0.0316]
[1745694354231,0.6547136,94224.0,94223.0,0.0316]
[1745694354432,0.6508456,94224.0,94223.0,0.0316]
[1745694355142,0.5447136,94224.0,94223.0,0.0316]
[1745694355541,0.6447136,94224.0,94223.0,0.0316]
[1745694355734,0.5447136,94224.0,94223.0,0.0316]
[1745694355935,0.8162136,94224.0,94223.0,0.0316]
[1745694356140,0.5762136,94224.0,94223.0,0.0316]
[1745694356540,0.5762136,94224.0,94223.0,0.03970564]
[1745694357338,0.6762136,94224.0,94223.0,0.03970564]
[1745694357535,0.5762136,94224.0,94223.0,0.03970564]
[1745694358245,0.6762136,94224.0,94223.0,0.03970564]
[1745694358446,0.6862136,94224.0,94223.0,0.03970564]
[1745694358642,0.5762136,94224.0,94223.0,0.03970564]
[1745694359450,0.6762136,94224.0,94223.0,0.03970564]
[1745694359642,0.5762136,94224.0,94223.0,0.03970564]
[1745694360748,0.8162136,94224.0,94223.0,0.03970564]
[1745694360946,0.5762136,94224.0,94223.0,0.03970564]
[1745694361644,0.6762136,94224.0,94223.0,0.03970564]
[1745694361845,0.5762136,94224.0,94223.0,0.03970564]
[1745694362047,0.6862136,94224.0,94223.0,0.03970564]
[1745694362357,0.5762136,94224.0,94223.0,0.03970564]
[1745694363053,0.6662136,94224.0,94223.0,0.03970564]
[1745694363247,0.5762136,94224.0,94223.0,0.03970564]
[1745694364146,0.6862136,94224.0,94223.0,0.03970564]
[1745694364345,0.5762136,94224.0,94223.0,0.03970564]
[1745694364550,0.6862136,94224.0,94223.0,0.03970564]
[1745694364737,0.5762136,94224.0,94223.0,0.03970564]
[1745694366347,0.6862136,94224.0,94223.0,0.03970564]
[1745694366551,0.5762136,94224.0,94223.0,0.03970564]
[1745694367553,0.6762136,94224.0,94223.0,0.03970564]
[1745694367753,0.5762136,94224.0,94223.0,0.03970564]
[1745694369547,0.6662136,94224.0,94223.0,0.03970564]
[1745694369744,0.5762136,94224.0,94223.0,0.03970564]
[1745694372545,0.6862136,94224.0,94223.0,0.03970564]
[1745694372755,0.6662136,94224.0,94223.0,0.03970564]
[1745694373052,0.5762136,94224.0,94223.0,0.03970564]
[1745694374454,0.6762136,94224.0,94223.0,0.03970564]
[1745694374859,0.5762136,94224.0,94223.0,0.03970564]
[1745694375763,0.6862136,94224.0,94223.0,0.03970564]
[1745694375951,0.5762136,94224.0,94223.0,0.03970564]
[1745694377062,0.2121845,94218.0,94217.0,0.00530687]
[1745694377361,0.5021845,94218.0,94217.0,0.00530687]
[1745694377555,0.6121845,94218.0,94217.0,0.00530687]
[1745694377756,0.5021845,94218.0,94217.0,0.00530687]
[1745694377965,0.5328845,94218.0,94217.0,0.00530687]
[1745694378258,0.6428845,94218.0,94217.0,0.00630687]
[1745694378453,0.5660845,94218.0,94217.0,0.00630687]
[1745694379160,0.6560845,94218.0,94217.0,0.00630687]
[1745694379362,0.5660845,94218.0,94217.0,0.00630687]
[1745694379858,0.8260845,94218.0,94217.0,0.00630687]
[1745694380058,0.5660845,94218.0,94217.0,0.00630687]
[1745694381354,0.5660845,94218.0,94217.0,0.0144476]
[1745694381660,0.6660845,94218.0,94217.0,0.0144476]
[1745694382053,0.5660845,94218.0,94217.0,0.0144476]
[1745694382955,0.6760845,94218.0,94217.0,0.0144476]
[1745694383162,0.6660845,94218.0,94217.0,0.0144476]
[1745694383355,0.5660845,94218.0,94217.0,0.0144476]
[1745694383554,0.6660845,94218.0,94217.0,0.0144476]
[1745694383755,0.5660845,94218.0,94217.0,0.0144476]
[1745694384158,0.6760845,94218.0,94217.0,0.0144476]
[1745694384453,0.5660845,94218.0,94217.0,0.0144476]
[1745694384852,0.6660845,94218.0,94217.0,0.0144476]
[1745694385053,0.5660845,94218.0,94217.0,0.0144476]
[1745694385253,0.6660845,94218.0,94217.0,0.0144476]
[1745694385763,0.5660845,94218.0,94217.0,0.0144476]
[1745694386560,0.6760845,94218.0,94217.0,0.0144476]
[1745694386761,0.5660845,94218.0,94217.0,0.0144476]
[1745694388163,0.6760845,94218.0,94217.0,0.0144476]
[1745694388758,0.5660845,94218.0,94217.0,0.0144476]
[1745694390960,0.5660845,94218.0,94217.0,0.0460476]
[1745694396470,0.6760845,94218.0,94217.0,0.0460476]
[1745694396670,0.6560845,94218.0,94217.0,0.0460476]
[1745694396971,0.5660845,94218.0,94217.0,0.0460476]
[1745694398270,0.6760845,94218.0,94217.0,0.0460476]
[1745694398472,0.5660845,94218.0,94217.0,0.0460476]
[1745694399367,0.6660845,94218.0,94217.0,0.0460476]
[1745694399572,0.6760845,94218.0,94217.0,0.0460476]
[1745694399769,0.6660845,94218.0,94217.0,0.0460476]
[1745694399969,0.5660845,94218.0,94217.0,0.0460476]
[1745694401171,0.6660845,94218.0,94217.0,0.0460476]
[1745694401375,0.5660845,94218.0,94217.0,0.0460476]
[1745694404469,0.6760845,94218.0,94217.0,0.0460476]
[1745694404669,0.5660845,94218.0,94217.0,0.0460476]
[1745694409387,0.6760845,94218.0,94217.0,0.0460476]
[1745694409683,0.5660845,94218.0,94217.0,0.0460476]
[1745694410776,0.5660845,94218.0,94217.0,0.0144476]
[1745694411082,0.6760845,94218.0,94217.0,0.0144476]
[1745694411291,0.5660845,94218.0,94217.0,0.0144476]
[1745694412683,0.6760845,94218.0,94217.0,0.0144476]
[1745694412884,0.5660845,94218.0,94217.0,0.0144476]
[1745694413074,0.6760845,94218.0,94217.0,0.0144476]
[1745694413274,0.6760845,94218.0,94217.0,0.0465476]
[1745694413476,0.5660845,94218.0,94217.0,0.0465476]
[1745694413675,0.8460845,94218.0,94217.0,0.0465476]
[1745694413874,0.5660845,94218.0,94217.0,0.0465476]
[1745694414983,0.6760845,94218.0,94217.0,0.0465476]
[1745694415184,0.5660845,94218.0,94217.0,0.0465476]
[1745694415384,0.6560845,94218.0,94217.0,0.0465476]
[1745694415884,0.5660845,94218.0,94217.0,0.0465476]
[1745694416379,0.6760845,94218.0,94217.0,0.0465476]
[1745694416583,0.5660845,94218.0,94217.0,0.0465476]
[1745694417376,0.6560845,94218.0,94217.0,0.0465476]
[1745694417582,0.5660845,94218.0,94217.0,0.0144476]
[1745694418577,0.6760845,94218.0,94217.0,0.0144476]
[1745694418788,0.5660845,94218.0,94217.0,0.0144476]
[1745694419284,0.6760845,94218.0,94217.0,0.0144476]
[1745694419579,0.6560845,94218.0,94217.0,0.0144476]
[1745694419779,0.5660845,94218.0,94217.0,0.0144476]
[1745694420687,0.6760845,94218.0,94217.0,0.0144476]
[1745694420882,0.5660845,94218.0,94217.0,0.0144476]
[1745694421081,0.6760845,94218.0,94217.0,0.0144476]
[1745694421585,0.5660845,94218.0,94217.0,0.0144476]
[1745694421786,0.6660845,94218.0,94217.0,0.0144476]
[1745694421986,0.5660845,94218.0,94217.0,0.0144476]
[1745694423389,0.6760845,94218.0,94217.0,0.0144476]
[1745694423591,0.5660845,94218.0,94217.0,0.0144476]
[1745694423779,0.6660845,94218.0,94217.0,0.0144476]
[1745694423975,0.6760845,94218.0,94217.0,0.0144476]
[1745694424183,0.4639,94218.0,94216.0,1e-07]
[1745694424488,0.4639,94218.0,94190.0,0.00106168]
[1745694424489,0.2122453,94191.0,94190.0,0.36186168]
[1745694424687,0.4522453,94191.0,94190.0,0.52247903]
[1745694425790,0.4522453,94191.0,94190.0,0.73472653]
[1745694426386,0.4522453,94191.0,94190.0,0.76822653]
[1745694427091,0.4522453,94191.0,94190.0,0.77631776]
[1745694427387,0.4522453,94191.0,94190.0,0.55345291]
[1745694427583,0.4522453,94191.0,94190.0,0.43355291]
[1745694428092,0.5151453,94191.0,94190.0,0.43355291]
[1745694429485,0.5151453,94191.0,94190.0,0.37295291]
[1745694430783,0.8759453,94191.0,94190.0,0.01215291]
[1745694431485,1.1159453,94191.0,94190.0,0.01215291]
[1745694431692,0.8759453,94191.0,94190.0,0.01215291]
[1745694433192,1.1259453,94191.0,94190.0,0.01215291]
[1745694433388,0.8759453,94191.0,94190.0,0.01215291]
[1745694435981,0.5151453,94191.0,94190.0,0.01215291]
[1745694437488,0.5151453,94191.0,94190.0,0.07265291]
[1745694440199,0.4522453,94191.0,94190.0,0.66570041]
[1745694443499,0.4522453,94191.0,94190.0,0.30490041]
[1745694445896,0.4522453,94191.0,94190.0,0.09265291]
[1745694447095,0.4850453,94191.0,94190.0,0.09265291]
[1745694447602,0.7450453,94191.0,94190.0,0.09265291]
[1745694447897,0.4850453,94191.0,94190.0,0.09265291]
[1745694451695,0.7350453,94191.0,94190.0,0.09265291]
[1745694452003,0.4850453,94191.0,94190.0,0.09265291]
[1745694453004,0.7650453,94191.0,94190.0,0.09265291]
[1745694453299,0.4850453,94191.0,94190.0,0.09265291]
[1745694456801,0.7650453,94191.0,94190.0,0.09265291]
[1745694457006,0.4850453,94191.0,94190.0,0.09265291]
[1745694457901,0.7250453,94191.0,94190.0,0.09265291]
[1745694458208,0.4850453,94191.0,94190.0,0.09265291]
[1745694458797,0.4850453,94191.0,94190.0,0.07265291]
[1745694459406,0.4850453,94191.0,94190.0,0.08265291]
[1745694459803,0.4850453,94191.0,94190.0,0.07965291]
[1745694461798,0.7350453,94191.0,94190.0,0.07965291]
[1745694461999,0.4850453,94191.0,94190.0,0.07965291]
[1745694463201,0.4850453,94191.0,94190.0,0.06965291]
[1745694467312,0.4850453,94191.0,94190.0,0.07965291]
[1745694467915,0.7550453,94191.0,94190.0,0.07965291]
[1745694468114,0.4850453,94191.0,94190.0,0.07965291]
[1745694468415,0.7550453,94191.0,94190.0,0.07965291]
[1745694468602,0.7450453,94191.0,94190.0,0.07965291]
[1745694468900,0.4850453,94191.0,94190.0,0.07965291]
[1745694469414,0.4850453,94191.0,94190.0,0.09569861]
[1745694469819,0.4850453,94191.0,94190.0,0.08569861]
[1745694471109,0.4850453,94191.0,94190.0,0.05529861]
[1745694471524,0.5950453,94191.0,94190.0,0.05529861]
[1745694471722,0.7150453,94191.0,94190.0,0.05529861]
[1745694471922,0.4850453,94191.0,94190.0,0.05529861]
[1745694473530,0.7350453,94191.0,94190.0,0.05529861]
[1745694473829,0.4850453,94191.0,94190.0,0.05529861]
[1745694474626,0.5750453,94191.0,94190.0,0.05529861]
[1745694474826,0.5950453,94191.0,94190.0,0.02519861]
[1745694475026,0.4850453,94191.0,94190.0,0.02519861]
[1745694475331,0.5950453,94191.0,94190.0,0.00915291]
[1745694475630,0.4850453,94191.0,94190.0,0.00915291]
[1745694475829,0.5850453,94191.0,94190.0,0.00915291]
[1745694476026,0.2122475,94190.0,94189.0,0.3608]
[1745694476227,0.5251475,94190.0,94189.0,0.3608]
[1745694476423,0.8055475,94190.0,94189.0,0.3608]
[1745694476628,0.8255475,94190.0,94189.0,0.3608]
[1745694476829,0.5555475,94190.0,94189.0,0.3608]
[1745694477137,0.5555475,94190.0,94189.0,0.36872185]
[1745694477630,0.5555475,94190.0,94189.0,0.37172185]
[1745694478628,0.7855475,94190.0,94189.0,0.37172185]
[1745694478823,0.5555475,94190.0,94189.0,0.37172185]
[1745694479728,0.6555475,94190.0,94189.0,0.37172185]
[1745694479925,0.6655475,94190.0,94189.0,0.37172185]
[1745694480130,0.5555475,94190.0,94189.0,0.37172185]
[1745694481525,0.6555475,94190.0,94189.0,0.37172185]
[1745694481726,0.6655475,94190.0,94189.0,0.37172185]
[1745694481927,0.5555475,94190.0,94189.0,0.37172185]
[1745694484127,0.6555475,94190.0,94189.0,0.37172185]
[1745694484433,0.5555475,94190.0,94189.0,0.37172185]
[1745694484634,0.6455475,94190.0,94189.0,0.37172185]
[1745694484834,0.5555475,94190.0,94189.0,0.37172185]
[1745694485230,0.6555475,94190.0,94189.0,0.37072185]
[1745694485429,0.6655475,94190.0,94189.0,0.37072185]
[1745694485733,0.5555475,94190.0,94189.0,0.37072185]
[1745694489042,0.5555475,94190.0,94189.0,0.00992185]
[1745694489432,0.6655475,94190.0,94189.0,0.00992185]
[1745694489739,0.5555475,94190.0,94189.0,0.00992185]
[1745694490542,0.6655475,94190.0,94189.0,0.00992185]
[1745694490743,0.5555475,94190.0,94189.0,0.00992185]
[1745694492441,0.6655475,94190.0,94189.0,0.00992185]
[1745694492640,0.5555475,94190.0,94189.0,0.00992185]
[1745694493534,0.8255475,94190.0,94189.0,0.00992185]
[1745694493734,0.5555475,94190.0,94189.0,0.00992185]
[1745694493937,0.6555475,94190.0,94189.0,0.00992185]
[1745694494138,0.5555475,94190.0,94189.0,0.00992185]
[1745694495336,0.6455475,94190.0,94189.0,0.00992185]
[1745694495534,0.5555475,94190.0,94189.0,0.00992185]
[1745694495735,0.6655475,94190.0,94189.0,0.00992185]
[1745694495940,0.5555475,94190.0,94189.0,0.00992185]
[1745694496636,0.6555475,94190.0,94189.0,0.00992185]
[1745694496939,0.5555475,94190.0,94189.0,0.00992185]
[1745694498840,0.6555475,94190.0,94189.0,0.00992185]
[1745694499139,0.5555475,94190.0,94189.0,0.00992185]
[1745694499347,0.6555475,94190.0,94189.0,0.00992185]
[1745694499541,0.6655475,94190.0,94189.0,0.00992185]
[1745694499845,0.5555475,94190.0,94189.0,0.00992185]
[1745694500532,0.5555475,94190.0,94181.0,0.09726]
[1745694500533,0.539468,94190.0,94160.0,0.00106202]
[1745694500739,0.539468,94190.0,94165.0,0.0614]
[1745694500740,0.2122926,94170.0,94165.0,0.0614]
[1745694500935,0.4822926,94170.0,94168.0,0.0329]
[1745694501148,0.4822926,94170.0,94160.0,0.00106202]
[1745694501337,0.2122994,94167.0,94166.0,0.0329]
[1745694501540,0.5022994,94167.0,94166.0,0.0329]
[1745694501735,0.5022994,94167.0,94166.0,0.04098999]
[1745694502439,0.5022994,94167.0,94166.0,0.04598999]
[1745694503240,0.5340994,94167.0,94166.0,0.04598999]
[1745694513447,0.5340994,94167.0,94166.0,0.05598999]
[1745694516456,0.5340994,94167.0,94166.0,0.02308999]
[1745694516847,0.5340994,94167.0,94166.0,0.01308999]
[1745694543968,0.5340994,94167.0,94166.0,0.04528999]
[1745694556081,0.5022994,94167.0,94166.0,0.04528999]
[1745694557373,0.5022994,94167.0,94166.0,0.06528999]
[1745694561672,0.5326994,94167.0,94166.0,0.06528999]
[1745694584888,0.5326994,94167.0,94166.0,0.06028999]
[1745694585090,0.5326994,94167.0,94166.0,0.06428999]
[1745694589495,0.5642994,94167.0,94166.0,0.06428999]
[1745694616999,0.5642994,94167.0,94166.0,0.03208999]
[1745694617405,0.5642994,94167.0,94166.0,0.01208999]
[1745694626717,0.5642994,94167.0,94160.0,0.00106202]
[1745694626718,0.2123129,94161.0,94160.0,0.00106202]
[1745694626917,0.8431129,94161.0,94160.0,0.02906057]
[1745694627110,0.0530809,94157.0,94124.0,0.4088]
[1745694627314,0.2123377,94150.0,94149.0,0.21227775]
[1745694627619,0.5023377,94150.0,94149.0,0.21227775]
[1745694628130,0.5023377,94150.0,94149.0,0.21927775]
[1745694628331,0.5337377,94150.0,94149.0,0.25187775]
[1745694628618,0.5337377,94150.0,94149.0,0.24487775]
[1745694628819,0.5337377,94150.0,94149.0,0.25087775]
[1745694629021,0.5337377,94150.0,94149.0,0.26153188]
[1745694629622,0.5337377,94150.0,94149.0,0.19725188]
[1745694630920,0.5337377,94150.0,94149.0,0.18659775]
[1745694641826,0.5337377,94150.0,94149.0,0.21829775]
[1745694652235,0.5337377,94150.0,94149.0,0.43063775]